bitfinex-derivatives/quotes_ETHF0:USTF0_20241020
["timestamp","ask_amount","ask_price","bid_price","bid_amount"]
[1729382643459,0.771,2652.7,2652.6,3.23413117]
[1729382643661,0.771,2652.7,2652.6,3.72950675]
[1729382643856,1.14799,2652.7,2652.6,3.72950675]
[1729382644060,0.771,2652.7,2652.6,3.72950675]
[1729382644264,0.771,2652.7,2652.6,3.2341276]
[1729382644457,0.771,2652.7,2652.6,3.23416984]
[1729382644657,0.771,2652.7,2652.6,1.80514815]
[1729382644865,0.771,2652.7,2652.6,3.72939851]
[1729382645369,0.771,2652.7,2652.6,3.23393977]
[1729382645560,0.771,2652.7,2652.6,2.24727121]
[1729382645757,0.771,2652.7,2652.6,3.72939851]
[1729382645957,0.771,2652.8,2652.6,3.72939851]
[1729382646152,3.8649963,2653.1,2652.7,0.98665215]
[1729382646356,1.14795,2653.0,2652.7,0.98665215]
[1729382646652,1.14795,2653.0,2652.8,0.98665215]
[1729382646861,1.14795,2653.0,2652.9,0.4017]
[1729382647265,0.771,2653.0,2652.9,0.4017]
[1729382647662,1.14795,2653.0,2652.9,0.4017]
[1729382648063,1.14795,2653.0,2652.9,0.8045]
[1729382649062,0.771,2653.0,2652.9,0.8045]
[1729382649765,3.58474,2653.1,2652.9,0.8045]
[1729382650061,0.3685,2653.0,2652.9,0.8045]
[1729382650261,3.2078,2653.1,2652.9,3.21987171]
[1729382650462,3.9788,2653.1,2653.0,0.98665215]
[1729382650672,3.9788,2653.1,2653.0,2.41524469]
[1729382652265,3.2078,2653.1,2653.0,2.41524469]
[1729382652462,3.58473,2653.1,2653.0,0.98665215]
[1729382652776,0.37697,2652.8,2652.7,0.98665215]
[1729382652970,3.58477,2652.8,2652.7,0.98665215]
[1729382654373,3.58477,2652.8,2652.7,2.83364743]
[1729382655469,3.58477,2652.8,2652.7,1.84699528]
[1729382655869,3.58477,2652.8,2652.7,2.83441365]
[1729382656078,3.58477,2652.8,2652.7,3.32912258]
[1729382657971,3.58477,2652.8,2652.7,0.98774968]
[1729382660371,3.58477,2652.8,2652.7,1.04244968]
[1729382661179,3.58477,2652.8,2652.7,2.47346205]
[1729382661378,3.58477,2652.8,2652.7,1.04244968]
[1729382661582,3.58477,2652.8,2652.7,2.47371724]
[1729382662383,3.58477,2652.8,2652.7,2.47424742]
[1729382662690,3.58477,2652.8,2652.7,1.48596756]
[1729382662872,3.58477,2652.8,2652.7,2.96809486]
[1729382663778,3.82797,2652.8,2652.7,2.96860431]
[1729382665390,3.82797,2652.8,2652.7,2.96985514]
[1729382665588,3.82797,2652.8,2652.7,1.48647701]
[1729382666475,4.59897,2652.8,2652.7,1.48647701]
[1729382667491,4.59897,2652.8,2652.7,3.46125545]
[1729382668780,4.59897,2652.8,2652.7,3.46193991]
[1729382668987,4.35577,2652.8,2652.7,3.46193991]
[1729382669784,1.14797,2652.8,2652.7,3.46193991]
[1729382669982,4.35577,2652.8,2652.7,3.46193991]
[1729382670384,4.35577,2652.8,2652.7,3.46197577]
[1729382670983,1.14797,2652.8,2652.7,3.46197577]
[1729382671184,4.35577,2652.8,2652.7,3.46197577]
[1729382673486,1.14797,2652.8,2652.7,3.46197577]
[1729382673681,1.14797,2652.8,2652.7,3.46196492]
[1729382673682,4.35577,2652.8,2652.7,3.46196492]
[1729382674281,1.14797,2652.8,2652.7,3.46196492]
[1729382674502,4.35577,2652.8,2652.7,3.46196492]
[1729382677094,1.14797,2652.8,2652.7,3.46196492]
[1729382677490,4.35577,2652.8,2652.7,3.46196492]
[1729382677689,1.14797,2652.8,2652.7,3.46196492]
[1729382677891,4.35577,2652.8,2652.7,3.46196492]
[1729382678790,1.14797,2652.8,2652.7,3.46211328]
[1729382678997,4.35577,2652.8,2652.7,3.46211328]
[1729382680391,1.14797,2652.8,2652.7,3.46211328]
[1729382680697,4.35577,2652.8,2652.7,3.46211328]
[1729382681195,4.35577,2652.8,2652.7,6.27238525]
[1729382683283,3.2078,2652.8,2652.7,3.40741328]
[1729382683483,0.771,2652.9,2652.7,3.40741328]
[1729382683795,1.14794,2653.1,2652.8,7.19348445]
[1729382683996,1.14794,2653.1,2653.0,1.97795834]
[1729382684198,1.14794,2653.1,2653.0,3.41059318]
[1729382684391,1.14794,2653.1,2653.0,6.26912764]
[1729382684591,0.771,2653.1,2653.0,6.26912764]
[1729382684897,0.771,2653.1,2653.0,4.2911693]
[1729382685485,0.37692,2653.2,2653.0,6.26815801]
[1729382685486,1.14792,2653.2,2653.0,6.26815801]
[1729382685688,1.14792,2653.2,2653.1,3.40962355]
[1729382685888,1.14792,2653.2,2653.1,6.26704478]
[1729382686501,1.14792,2653.2,2653.1,3.40962355]
[1729382687003,1.14792,2653.2,2653.1,2.9152624]
[1729382687301,1.69487554,2653.2,2653.1,2.9152624]
[1729382688402,1.69487554,2653.2,2653.1,1.42861296]
[1729382689195,1.14792,2653.2,2653.1,1.42861296]
[1729382689495,1.69478911,2653.2,2653.1,1.42861296]
[1729382689696,1.14792,2653.2,2653.1,1.42861296]
[1729382689899,1.69479687,2653.2,2653.1,2.41704218]
[1729382690103,1.14792,2653.2,2653.1,1.42861296]
[1729382690505,1.14792,2653.2,2653.1,2.41691455]
[1729382690705,1.14792,2653.2,2653.1,1.42861296]
[1729382691309,1.14792,2653.2,2653.1,2.41692155]
[1729382691604,1.14792,2653.2,2653.1,1.42861296]
[1729382692600,1.14792,2653.2,2653.1,2.41686745]
[1729382692798,1.14792,2653.2,2653.1,1.42861296]
[1729382693001,1.14792,2653.2,2653.1,2.41683324]
[1729382693402,1.14792,2653.2,2653.1,2.41659291]
[1729382693593,1.14792,2653.2,2653.1,1.42837263]
[1729382693793,1.14792,2653.2,2653.1,2.41656045]
[1729382695093,1.14792,2653.2,2653.1,0.98818782]
[1729382695490,1.14792,2653.2,2653.1,2.41650315]
[1729382696401,1.14792,2653.2,2653.1,1.42831533]
[1729382696701,1.14792,2653.2,2653.1,2.41653975]
[1729382697206,1.14792,2653.2,2653.1,2.41653791]
[1729382697600,1.14792,2653.2,2653.1,1.42831533]
[1729382697801,1.14792,2653.2,2653.1,2.41657112]
[1729382698001,1.14792,2653.2,2653.1,1.42831533]
[1729382698299,1.14792,2653.2,2653.1,2.41665767]
[1729382698498,1.14792,2653.2,2653.1,2.91102686]
[1729382698804,1.40723789,2653.2,2653.1,2.41669313]
[1729382699107,1.40723789,2653.2,2653.1,1.4283993]
[1729382699414,1.40723789,2653.2,2653.1,2.41666345]
[1729382699802,1.40723789,2653.2,2653.1,1.4283993]
[1729382700002,1.40723789,2653.2,2653.1,2.41665776]
[1729382700300,1.14792,2653.2,2653.1,2.41665776]
[1729382701102,1.14792,2653.2,2653.1,2.91102686]
[1729382701603,1.14792,2653.2,2653.1,2.91089004]
[1729382703603,0.771,2653.2,2653.1,2.91089004]
[1729382704398,1.14792,2653.2,2653.1,1.42826248]
[1729382704697,1.14792,2653.2,2653.1,2.91029035]
[1729382705811,1.55952,2653.2,2653.1,1.48296248]
[1729382706005,1.55952,2653.2,2653.1,2.47106968]
[1729382706403,0.78852,2653.2,2653.1,1.0428072]
[1729382706603,1.55952,2653.2,2653.1,2.4800598]
[1729382707003,1.55952,2653.2,2653.1,2.48009926]
[1729382707607,0.771,2653.2,2653.1,2.48014152]
[1729382707804,0.771,2653.2,2653.1,2.9740701]
[1729382707999,0.771,2653.2,2653.1,1.49204223]
[1729382708308,0.771,2653.2,2653.1,3.46903094]
[1729382708708,0.771,2653.2,2653.1,1.49204223]
[1729382709603,3.2078,2653.3,2653.1,7.23783094]
[1729382709810,3.2078,2653.3,2653.2,1.82714223]
[1729382710003,3.2078,2653.3,2653.2,3.80413094]
[1729382710404,3.2078,2653.3,2653.2,6.67827269]
[1729382711208,0.37687,2653.6,2653.2,5.57458871]
[1729382711420,0.37687,2653.6,2653.5,0.98773062]
[1729382711912,1.14785,2653.7,2653.5,1.83980064]
[1729382712108,1.14785,2653.7,2653.6,1.39894758]
[1729382712421,3.2078,2653.8,2653.6,2.83578508]
[1729382712709,0.365,2653.7,2653.6,1.39894758]
[1729382713011,0.365,2653.7,2653.6,1.84786416]
[1729382713214,0.365,2653.7,2653.6,3.3294601]
[1729382713911,0.365,2653.7,2653.6,1.84786416]
[1729382714219,0.365,2653.7,2653.6,3.3285894]
[1729382714913,3.2078,2653.8,2653.6,3.3285894]
[1729382715117,3.9788,2653.8,2653.7,2.42291169]
[1729382715615,4.35563,2653.8,2653.7,0.98707537]
[1729382715809,4.35563,2653.8,2653.7,1.39887537]
[1729382716734,3.2078,2653.8,2653.7,1.39887537]
[1729382717022,3.9788,2653.8,2653.7,1.39887537]
[1729382718314,3.9788,2653.8,2653.7,2.83408942]
[1729382718623,3.9788,2653.8,2653.7,1.39824809]
[1729382718824,3.9788,2653.8,2653.7,2.83331494]
[1729382719017,3.9788,2653.8,2653.7,1.39824809]
[1729382721824,0.771,2653.8,2653.7,1.39824809]
[1729382725119,3.2078,2653.9,2653.7,1.39824809]
[1729382725320,3.9788,2653.9,2653.7,1.39824809]
[1729382725627,3.9788,2653.9,2653.8,0.408]
[1729382727032,0.771,2653.9,2653.8,0.408]
[1729382727229,3.9788,2653.9,2653.8,0.408]
[1729382727524,0.771,2653.9,2653.8,0.408]
[1729382727723,3.2078,2653.9,2653.8,0.408]
[1729382727930,0.771,2653.9,2653.8,0.408]
[1729382728529,0.37681,2654.0,2653.8,0.408]
[1729382728834,0.771,2654.0,2653.8,1.39444809]
[1729382729133,3.58459,2654.1,2653.8,1.39444809]
[1729382729327,3.58459,2654.1,2653.9,0.98644809]
[1729382729526,3.58459,2654.1,2654.0,0.4025]
[1729382734540,7.3931,2654.1,2653.8,0.98644809]
[1729382734735,7.3931,2654.1,2653.5,2.46717333]
[1729382734736,3.6251,2654.1,2653.5,2.46717333]
[1729382734923,3.2078,2653.7,2653.4,0.98644809]
[1729382735128,1.9906,2653.6,2653.4,0.98644809]
[1729382735326,1.1873,2653.6,2653.4,0.98644809]
[1729382735629,1.1873,2653.6,2653.5,0.4291]
[1729382735834,0.77,2653.6,2653.5,1.41554809]
[1729382736336,0.77,2653.6,2653.5,0.4291]
[1729382736633,0.77,2653.6,2653.5,1.41554809]
[1729382737247,0.77,2653.6,2653.4,0.98644809]
[1729382737724,1.14686,2653.6,2653.4,0.98644809]
[1729382737928,0.4033,2653.5,2653.4,0.98644809]
[1729382740633,0.77,2653.6,2653.4,0.98644809]
[1729382740837,0.77,2653.6,2653.5,0.98644809]
[1729382741033,0.77,2653.6,2653.5,1.40234809]
[1729382742639,0.77,2653.6,2653.5,2.83728636]
[1729382742939,0.77,2653.6,2653.5,3.33156351]
[1729382743138,0.77,2653.6,2653.5,1.85083827]
[1729382743439,0.77,2653.6,2653.5,2.8372572]
[1729382743735,0.20421958,2653.6,2653.5,2.8372572]
[1729382744331,0.20421958,2653.6,2653.5,1.85083827]
[1729382744526,0.20421958,2653.6,2653.5,3.33156351]
[1729382744833,3.9778,2653.7,2653.5,3.33156351]
[1729382745035,3.9778,2653.7,2653.6,2.82003801]
[1729382745234,3.9778,2653.7,2653.6,3.23332798]
[1729382745435,3.9778,2653.7,2653.6,2.24670076]
[1729382745925,3.9778,2653.7,2653.6,3.727426]
[1729382746125,3.2078,2653.7,2653.6,3.727426]
[1729382746342,3.2078,2653.7,2653.6,2.24670076]
[1729382746539,3.2078,2653.7,2653.6,7.99168947]
[1729382747039,1.14681,2654.0,2653.6,10.85778743]
[1729382747241,1.14681,2654.0,2653.9,0.98667194]
[1729382747638,1.14681,2654.0,2653.9,1.41167194]
[1729382748040,0.77,2654.0,2653.9,1.41167194]
[1729382749037,0.77,2654.0,2653.9,2.84491051]
[1729382749640,1.1468,2654.0,2653.9,2.84491051]
[1729382749845,1.1468,2654.0,2653.9,0.98667194]
[1729382750046,0.37682,2653.9,2653.8,0.98667194]
[1729382750339,0.37683,2653.8,2653.7,0.98667194]
[1729382750543,1.21763,2653.8,2653.7,1.43354366]
[1729382750837,1.63133,2653.8,2653.7,0.98718959]
[1729382751437,1.63133,2653.8,2653.7,2.42112455]
[1729382752036,1.63133,2653.8,2653.7,1.43393496]
[1729382752644,1.63133,2653.8,2653.7,2.91394288]
[1729382754941,1.63133,2653.8,2653.7,2.91501853]
[1729382755648,1.63133,2653.8,2653.7,1.43501061]
[1729382756956,0.79833,2653.8,2653.7,1.43501061]
[1729382757147,0.79833,2653.8,2653.7,2.66751061]
[1729382757549,0.37683,2653.8,2653.7,4.64449932]
[1729382757750,1.14683,2653.8,2653.7,4.64449932]
[1729382759747,1.14683,2653.8,2653.7,4.64514601]
[1729382762958,1.14683,2653.8,2653.7,2.91844792]
[1729382763259,1.14683,2653.8,2653.7,2.91851495]
[1729382766861,4.35463,2653.8,2653.7,2.91851495]
[1729382767262,1.14683,2653.8,2653.7,2.91851495]
[1729382767957,3.9778,2653.8,2653.7,2.91851495]
[1729382768157,3.9778,2653.8,2653.7,1.43556012]
[1729382768471,3.2078,2653.8,2653.7,3.41254883]
[1729382768854,0.77,2653.9,2653.7,6.28353455]
[1729382769055,3.2078,2654.1,2653.8,1.43556012]
[1729382769251,0.55161449,2654.0,2653.9,3.32513839]
[1729382770863,3.2078,2654.1,2653.9,3.32513839]
[1729382771070,0.08173988,2654.0,2653.9,1.88957827]
[1729382772356,0.08173988,2654.0,2653.9,0.407]
[1729382772862,0.08173988,2654.0,2653.9,1.88946581]
[1729382774154,0.08173988,2654.0,2653.9,2.68546581]
[1729382775968,0.08173988,2654.0,2653.9,1.203]
[1729382776764,3.2078,2654.1,2653.9,1.203]
[1729382776765,3.58459,2654.1,2653.9,1.203]
[1729382776967,4.35459,2654.1,2654.0,1.48252848]
[1729382777363,4.35459,2654.1,2653.9,2.68552848]
[1729382777563,4.35459,2654.1,2654.0,1.48252848]
[1729382777863,4.90044642,2654.1,2653.9,2.68552848]
[1729382778060,4.35459,2654.1,2653.9,2.68552848]
[1729382779163,3.9778,2654.1,2653.9,2.68552848]
[1729382779364,3.9778,2654.1,2654.0,1.48252848]
[1729382779365,4.35459,2654.1,2654.0,1.48252848]
[1729382780166,3.9778,2654.1,2654.0,1.48252848]
[1729382780367,4.52384715,2654.1,2654.0,1.48252848]
[1729382780571,4.90063715,2654.1,2654.0,1.48252848]
[1729382780972,4.52384715,2654.1,2654.0,1.48252848]
[1729382781468,4.52384715,2654.1,2653.9,2.68552848]
[1729382781669,3.9778,2654.1,2653.9,2.68552848]
[1729382781866,4.3546,2654.1,2653.9,2.68552848]
[1729382782569,0.77,2654.1,2653.9,2.68552848]
[1729382782773,0.77,2654.1,2654.0,1.48252848]
[1729382782966,0.77,2654.1,2653.9,3.17998871]
[1729382783271,1.1468,2654.1,2653.9,3.17998871]
[1729382783463,1.1468,2654.1,2654.0,1.48266129]
[1729382784569,1.6929231,2654.1,2654.0,1.48266129]
[1729382785272,0.3768,2654.0,2653.9,2.68566129]
[1729382786473,3.2078,2654.5,2653.9,6.03143604]
[1729382786670,3.2078,2654.5,2654.4,1.48295162]
[1729382786873,3.2078,2654.5,2654.2,1.97698871]
[1729382787174,0.76846,2654.4,2654.3,1.4827704]
[1729382788968,0.3917,2654.4,2654.2,1.4827704]
[1729382789767,0.76845,2654.4,2654.2,1.8918704]
[1729382790071,3.2078,2654.5,2654.3,4.82712779]
[1729382790275,3.2078,2654.5,2654.3,2.37468871]
[1729382791068,3.2078,2654.5,2654.4,1.42471904]
[1729382791275,3.2078,2654.5,2654.4,2.90608189]
[1729382792577,3.58453,2654.5,2654.4,2.90608189]
[1729382793177,3.2078,2654.5,2654.4,1.42471904]
[1729382793871,1.14673,2654.6,2654.4,1.42471904]
[1729382794069,1.14673,2654.6,2654.3,1.87906285]
[1729382794272,1.14673,2654.6,2654.4,2.9050351]
[1729382794471,1.14673,2654.6,2654.4,1.48136285]
[1729382794674,1.14673,2654.6,2654.5,0.4253]
[1729382795076,1.14673,2654.6,2654.5,0.54313142]
[1729382795373,0.3918,2654.7,2654.5,0.4253]
[1729382795581,1.53851,2654.7,2654.5,0.4253]
[1729382795875,1.1618,2654.7,2654.5,0.4253]
[1729382796074,0.3918,2654.7,2654.6,0.11782624]
[1729382796274,3.2078,2654.8,2654.6,1.42639683]
[1729382796481,3.2078,2654.8,2654.7,3.4269241]
[1729382796686,3.2078,2654.8,2654.7,1.94556125]
[1729382797183,3.2078,2654.8,2654.7,0.51922169]
[1729382797676,3.6185,2655.1,2654.7,2.13365938]
[1729382797885,4.3885,2655.1,2654.8,2.13558804]
[1729382798180,4.3338,2655.1,2654.9,0.11782169]
[1729382798482,4.3338,2655.1,2654.8,0.8084]
[1729382798682,4.3338,2655.1,2654.9,0.11781272]
[1729382798881,4.3338,2655.1,2654.8,0.8084]
[1729382799068,4.3338,2655.1,2654.9,0.11781234]
[1729382799273,4.723,2655.1,2654.8,0.8084]
[1729382800076,4.723,2655.1,2654.9,0.11781095]
[1729382800273,4.723,2655.1,2654.8,0.8084]
[1729382800476,3.953,2655.1,2654.9,0.11781024]
[1729382800673,4.32965,2655.1,2654.8,0.8084]
[1729382800878,4.32965,2655.1,2654.9,0.11781253]
[1729382801082,4.32965,2655.1,2654.8,0.8084]
[1729382801880,3.953,2655.1,2654.8,0.8084]
[1729382802187,3.953,2655.1,2654.7,0.4014]
[1729382802188,0.37669,2654.8,2654.7,0.4014]
[1729382803479,3.2078,2654.8,2654.6,0.391]
[1729382803686,0.3767,2654.7,2654.6,0.7967]
[1729382803987,1.2078,2654.7,2654.6,0.7967]
[1729382804492,1.2078,2654.7,2654.6,0.91452425]
[1729382804691,0.64224346,2654.7,2654.6,0.91452425]
[1729382804882,1.01894346,2654.7,2654.6,0.7967]
[1729382805089,0.64224346,2654.7,2654.6,0.7967]
[1729382805388,0.64224346,2654.7,2654.6,0.91452316]
[1729382805587,0.4127,2654.7,2654.6,0.91452316]
[1729382805787,0.4127,2654.7,2654.6,4.68172316]
[1729382805987,0.37668,2654.9,2654.6,6.29190576]
[1729382806177,0.37667,2655.0,2654.7,0.11782316]
[1729382806380,0.37667,2655.0,2654.8,0.4114]
[1729382806588,3.58446,2655.1,2654.8,0.4114]
[1729382806784,3.2078,2655.1,2654.8,0.4114]
[1729382806993,3.58446,2655.1,2654.8,0.4114]
[1729382807192,3.58446,2655.1,2654.9,0.51110644]
[1729382807406,3.2078,2655.1,2655.0,0.11780644]
[1729382807889,3.2078,2655.1,2654.9,0.3933]
[1729382808188,0.94146,2655.6,2654.9,0.3933]
[1729382808189,3.2078,2655.7,2655.0,3.7664]
[1729382808393,3.2078,2655.7,2655.1,3.9419716]
[1729382808593,0.37658,2655.6,2655.2,0.3062716]
[1729382808893,0.37658,2655.6,2655.3,0.6992716]
[1729382809092,3.58437,2655.7,2655.4,0.11780509]
[1729382809283,3.58437,2655.7,2655.4,0.3933]
[1729382809284,0.37658,2655.6,2655.4,0.3933]
[1729382809488,0.37658,2655.6,2655.5,0.11777496]
[1729382809697,3.58437,2655.7,2655.5,3.88337496]
[1729382809897,3.58437,2655.7,2655.5,0.11777496]
[1729382810097,0.37657,2655.7,2655.5,0.11777496]
[1729382811187,3.2078,2655.9,2655.5,0.11777496]
[1729382811188,3.9778,2655.9,2655.5,0.11777496]
[1729382811391,3.9778,2655.9,2655.4,0.3933]
[1729382811692,0.37658,2655.6,2655.4,0.3933]
[1729382812294,0.37658,2655.6,2655.4,4.1589]
[1729382812894,0.37658,2655.6,2655.4,0.3933]
[1729382813102,3.9778,2655.9,2655.4,4.1589]
[1729382813295,0.37659,2655.6,2655.4,0.3933]
[1729382813898,3.9778,2655.9,2655.4,0.3933]
[1729382814100,0.37658,2655.6,2655.4,0.3933]
[1729382815191,0.37659,2655.5,2655.4,0.3933]
[1729382816102,0.77,2656.0,2655.4,0.7699]
[1729382816300,0.37657,2655.7,2655.4,0.7699]
[1729382817803,0.37659,2655.5,2655.4,0.3933]
[1729382818412,0.37662,2655.3,2655.1,0.4279]
[1729382818699,0.37662,2655.3,2655.2,0.4166]
[1729382819100,0.4089,2655.5,2655.2,0.4166]
[1729382819308,0.3766,2655.4,2655.2,0.4166]
[1729382820401,0.7994,2655.5,2655.2,0.4166]
[1729382820802,0.37662,2655.3,2655.2,0.4166]
[1729382821703,0.7994,2655.5,2655.2,0.4166]
[1729382822208,0.37661,2655.4,2655.2,0.4166]
[1729382823006,0.7994,2655.5,2655.2,0.4166]
[1729382823416,0.7994,2655.5,2654.9,3.6341]
[1729382823417,0.37665,2655.1,2654.9,3.2078]
[1729382823619,0.77,2655.4,2654.7,0.3767]
[1729382823620,0.841,2655.0,2654.7,0.3767]
[1729382823905,0.841,2655.0,2654.7,0.37669]
[1729382824308,0.841,2655.0,2654.7,0.3767]
[1729382824501,0.841,2655.0,2654.8,0.37668]
[1729382824717,3.9778,2655.3,2655.0,0.37665]
[1729382824910,3.9778,2655.3,2654.6,5.5110467]
[1729382824911,3.9778,2655.3,2655.1,1.17015]
[1729382825504,3.9778,2655.3,2655.1,0.7935]
[1729382826113,4.4022,2655.3,2655.1,0.7935]
[1729382826416,4.3475,2655.3,2655.1,0.7935]
[1729382827802,0.77,2655.3,2655.1,1.17014]
[1729382828009,0.77,2655.3,2655.1,0.4007]
[1729382828216,0.4244,2655.2,2655.1,0.4007]
[1729382828913,0.77,2655.3,2655.1,0.4007]
[1729382830007,0.77,2655.3,2655.1,0.77734]
[1729382830915,0.77,2655.3,2655.1,0.4007]
[1729382831312,0.79031,2655.4,2655.1,0.4007]
[1729382832017,0.79031,2655.4,2655.1,0.77735]
[1729382832213,0.79031,2655.4,2655.1,0.4007]
[1729382832719,0.79031,2655.4,2655.1,0.77735]
[1729382832913,0.4137,2655.4,2655.1,0.4007]
[1729382833108,0.4137,2655.4,2655.2,0.37663]
[1729382833818,0.80088,2655.6,2655.2,0.37663]
[1729382834010,0.8137,2655.6,2655.2,0.37663]
[1729382834209,0.37659,2655.5,2655.3,0.11778247]
[1729382834410,0.37659,2655.5,2655.2,1.8528767]
[1729382834617,1.19029,2655.6,2655.2,1.8528767]
[1729382834811,1.19029,2655.6,2655.3,0.52928339]
[1729382834812,0.3894,2655.6,2655.3,0.52928339]
[1729382835020,0.3894,2655.6,2655.4,0.3766]
[1729382835317,0.3894,2655.6,2655.4,0.7686]
[1729382837714,0.3894,2655.6,2655.4,0.392]
[1729382838111,0.3894,2655.6,2655.4,1.8682467]
[1729382838311,0.37659,2655.5,2655.4,0.392]
[1729382838520,0.77099,2655.5,2655.4,0.50978181]
[1729382839819,0.77099,2655.5,2655.4,0.50978537]
[1729382840613,0.77099,2655.5,2655.4,0.11778537]
[1729382840820,0.37662,2655.3,2655.2,1.4762467]
[1729382841019,0.37662,2655.3,2655.2,3.20221435]
[1729382841624,0.37662,2655.3,2655.2,1.72596765]
[1729382841921,0.37662,2655.3,2655.2,3.01476545]
[1729382842126,0.37662,2655.3,2655.2,1.72596639]
[1729382844620,0.37662,2655.3,2655.2,1.72680503]
[1729382845220,0.37662,2655.3,2655.2,3.69514897]
[1729382846127,0.37662,2655.3,2655.2,3.69514362]
[1729382846424,0.37662,2655.3,2655.2,1.72679968]
[1729382846621,0.37662,2655.3,2655.2,3.69514362]
[1729382846822,0.37662,2655.3,2655.2,6.53660934]
[1729382847215,0.37662,2655.3,2655.2,6.53908397]
[1729382847523,0.37662,2655.3,2655.2,3.69761825]
[1729382847721,0.37662,2655.3,2655.2,6.53983157]
[1729382849221,0.37662,2655.3,2655.2,4.569013]
[1729382849627,0.37662,2655.3,2655.2,4.57130093]
[1729382849833,0.37662,2655.3,2655.2,4.26505858]
[1729382850033,0.37662,2655.3,2655.2,6.54329715]
[1729382850221,0.37662,2655.3,2655.2,7.26729727]
[1729382850629,0.37662,2655.3,2655.2,4.80686734]
[1729382850841,0.37662,2655.3,2655.2,4.80889113]
[1729382851022,0.37662,2655.3,2655.2,3.70175073]
[1729382851223,0.37662,2655.3,2655.2,6.54796046]
[1729382852423,0.37662,2655.3,2655.2,4.57481025]
[1729382852931,0.37662,2655.3,2655.2,6.36099258]
[1729382853133,0.37662,2655.3,2655.2,4.38635503]
[1729382853436,0.37662,2655.3,2655.2,6.72900045]
[1729382853625,0.37662,2655.3,2655.2,6.8467931]
[1729382854237,0.37662,2655.3,2655.2,4.38636317]
[1729382854429,0.32192,2655.3,2655.2,2.58641139]
[1729382854623,0.32192,2655.3,2655.2,4.57751066]
[1729382855231,1.1784,2655.5,2655.2,4.57751066]
[1729382855530,1.1784,2655.5,2655.4,1.97489892]
[1729382855726,1.1784,2655.5,2655.4,6.24615754]
[1729382855727,1.55499,2655.5,2655.4,6.24615754]
[1729382856240,4.76279,2655.5,2655.4,3.39865179]
[1729382856729,4.76279,2655.5,2655.4,1.42375287]
[1729382856929,4.76279,2655.5,2655.4,2.90517651]
[1729382857233,8.52839,2655.5,2655.4,2.90522793]
[1729382857828,8.52839,2655.5,2655.4,1.42375287]
[1729382858026,8.52839,2655.5,2655.4,0.77975287]
[1729382858224,8.1518,2655.5,2655.1,1.48151537]
[1729382858531,3.2078,2655.2,2654.9,1.48151537]
[1729382858736,0.37666,2655.0,2654.9,1.48151537]
[1729382858934,1.16066,2655.0,2654.9,1.48151537]
[1729382859128,1.56706,2655.0,2654.9,1.48151537]
[1729382861229,0.37668,2654.9,2654.8,1.48151537]
[1729382861429,3.58448,2654.9,2654.8,1.48151537]
[1729382862636,0.37669,2654.8,2654.7,1.48151537]
[1729382862849,0.78449,2654.8,2654.7,1.48151537]
[1729382865147,0.3767,2654.7,2654.6,1.48151537]
[1729382865329,0.4078,2654.8,2654.6,1.48151537]
[1729382865852,0.3767,2654.7,2654.6,1.48151537]
[1729382866139,3.7672,2654.7,2654.3,1.48151537]
[1729382866332,3.9968,2654.6,2654.2,1.48151537]
[1729382866638,0.783,2654.5,2654.2,1.48151537]
[1729382866832,0.37676,2654.4,2654.2,1.48151537]
[1729382869241,0.37676,2654.4,2654.1,2.66770537]
[1729382869438,1.15974,2654.5,2654.2,1.85827537]
[1729382869841,0.783,2654.5,2654.2,1.48151537]
[1729382870145,0.37675,2654.4,2654.2,1.48151537]
[1729382870347,0.37675,2654.4,2654.1,2.66769537]
[1729382871444,0.37675,2654.4,2654.2,1.48151537]
[1729382871836,0.37675,2654.4,2654.1,2.66769537]
[1729382872447,0.37675,2654.4,2654.2,1.48151537]
[1729382872835,0.37675,2654.4,2654.1,2.66769537]
[1729382874240,0.37676,2654.3,2654.1,2.66769537]
[1729382874434,0.37676,2654.3,2654.1,1.18618]
[1729382874839,0.37676,2654.3,2654.1,2.66769537]
[1729382875441,0.37676,2654.3,2654.1,1.18618]
[1729382876451,0.37676,2654.3,2654.1,2.66769537]
[1729382876840,3.2078,2654.5,2654.1,2.29091537]
[1729382877146,0.37674,2654.5,2654.3,0.37675]
[1729382877345,0.37674,2654.5,2654.4,0.3998]
[1729382877544,3.58454,2654.5,2654.4,0.8209]
[1729382877742,4.01234,2654.5,2654.4,0.8209]
[1729382878537,4.41874,2654.5,2654.4,0.4211]
[1729382878944,0.37678,2654.2,2654.1,0.7976]
[1729382882551,0.32208,2654.2,2654.1,0.7976]
[1729382886361,3.2078,2654.7,2654.1,2.21104653]
[1729382886543,0.37675,2654.4,2654.2,0.37677]
[1729382886852,0.783,2654.6,2654.1,2.27911537]
[1729382887257,0.37675,2654.4,2654.2,0.37677]
[1729382887657,0.37675,2654.4,2654.3,0.3986]
[1729382891053,3.58455,2654.4,2654.3,0.3986]
[1729382893248,0.37675,2654.4,2654.3,0.3986]
[1729382894658,0.37675,2654.4,2654.3,1.38308889]
[1729382895454,0.37675,2654.4,2654.3,2.79804312]
[1729382895655,0.37675,2654.4,2654.3,1.38308889]
[1729382896557,0.37675,2654.4,2654.3,0.3986]
[1729382898362,0.37675,2654.4,2654.3,1.38308889]
[1729382898759,0.8058,2654.5,2654.3,1.38308889]
[1729382898966,0.37675,2654.4,2654.3,1.38308889]
[1729382899157,0.37675,2654.4,2654.3,2.79895884]
[1729382899356,0.37675,2654.4,2654.3,1.81446995]
[1729382900064,0.37675,2654.4,2654.3,2.80064989]
[1729382900264,0.37675,2654.4,2654.3,3.29598532]
[1729382900862,3.58455,2654.4,2654.3,3.29598532]
[1729382901064,0.37675,2654.4,2654.3,3.29598532]
[1729382901866,3.58455,2654.4,2654.3,3.29738745]
[1729382902263,0.37675,2654.4,2654.3,1.81587208]
[1729382902464,3.58455,2654.4,2654.3,1.81587208]
[1729382903358,3.98495,2654.4,2654.3,6.62803447]
[1729382903768,3.98495,2654.4,2654.3,3.790771]